[Event "*** Titled Tuesday Blitz"]
[Site "Chess.com"]
[Date "2021.02.02"]
[Round "9"]
[White "Das_Virus_2020"]
[Black "szefru"]
[Result "0-1"]
[WhiteElo "2409"]
[BlackElo "2252"]
[TimeControl "180+1"]
[EndTime "11:46:54 PST"]
[Termination "szefru won on time"]

1. e4 {[%clk 0:03:00.9]} 1... Nf6 {[%clk 0:02:59.3]} 2. Nc3 {[%clk 0:02:59.8]}
2... d5 {[%clk 0:02:59]} 3. exd5 {[%clk 0:03:00.7]} 3... Nxd5 {[%clk 0:02:59.8]}
4. Bc4 {[%clk 0:03:00.6]} 4... c6 {[%clk 0:02:59.2]} 5. Qf3 {[%clk 0:03:00]}
5... Be6 {[%clk 0:02:55.5]} 6. Nge2 {[%clk 0:02:58.8]} 6... Nc7 {[%clk
0:02:46.7]} 7. Bxe6 {[%clk 0:02:43.3]} 7... Nxe6 {[%clk 0:02:47.6]} 8. O-O
{[%clk 0:02:43.3]} 8... g6 {[%clk 0:02:47.8]} 9. d4 {[%clk 0:02:41.5]} 9... Bg7
{[%clk 0:02:48.3]} 10. Rd1 {[%clk 0:02:35.5]} 10... O-O {[%clk 0:02:45.9]} 11.
Be3 {[%clk 0:02:35.3]} 11... Nc7 {[%clk 0:02:40.8]} 12. Bf4 {[%clk 0:02:21]}
12... Nd7 {[%clk 0:02:37.9]} 13. d5 {[%clk 0:02:14.2]} 13... Nxd5 {[%clk
0:02:30.3]} 14. Nxd5 {[%clk 0:02:14.2]} 14... cxd5 {[%clk 0:02:31.2]} 15. Rxd5
{[%clk 0:02:08.5]} 15... e5 {[%clk 0:02:26]} 16. Rad1 {[%clk 0:01:43.8]} 16...
exf4 {[%clk 0:02:22]} 17. Rxd7 {[%clk 0:01:43.5]} 17... Qc8 {[%clk 0:02:17.6]}
18. c3 {[%clk 0:01:42.2]} 18... g5 {[%clk 0:01:55.8]} 19. h4 {[%clk 0:01:38.4]}
19... h6 {[%clk 0:01:50.8]} 20. hxg5 {[%clk 0:01:31]} 20... hxg5 {[%clk
0:01:51.7]} 21. Qd5 {[%clk 0:01:26.5]} 21... Qe8 {[%clk 0:01:45.3]} 22. Kf1
{[%clk 0:01:09.2]} 22... Bf6 {[%clk 0:01:33.6]} 23. Qf5 {[%clk 0:01:07.8]} 23...
Kg7 {[%clk 0:01:30.4]} 24. Rxb7 {[%clk 0:00:51.6]} 24... Rh8 {[%clk 0:01:29.4]}
25. Ng1 {[%clk 0:00:44.9]} 25... Rd8 {[%clk 0:01:23.7]} 26. Rbd7 {[%clk
0:00:37.4]} 26... Rxd7 {[%clk 0:01:16.6]} 27. Qxd7 {[%clk 0:00:36.7]} 27... Qb8
{[%clk 0:01:16.1]} 28. b3 {[%clk 0:00:30.4]} 28... Bxc3 {[%clk 0:01:14.3]} 29.
Qd3 {[%clk 0:00:13.3]} 29... Bf6 {[%clk 0:01:12.4]} 30. Re1 {[%clk 0:00:12]}
30... Rd8 {[%clk 0:01:10.3]} 31. Qe2 {[%clk 0:00:10.9]} 31... Qb4 {[%clk
0:01:08.7]} 32. Nf3 {[%clk 0:00:10.5]} 32... Rd7 {[%clk 0:00:59.3]} 33. Kg1
{[%clk 0:00:10.7]} 33... Re7 {[%clk 0:00:58.7]} 34. Qd1 {[%clk 0:00:10]} 34...
Rxe1+ {[%clk 0:00:50.8]} 35. Qxe1 {[%clk 0:00:10.1]} 35... Qa3 {[%clk
0:00:49.7]} 36. Qd2 {[%clk 0:00:09.9]} 36... Bb2 {[%clk 0:00:47.7]} 37. Ne1
{[%clk 0:00:07.4]} 37... Qxa2 {[%clk 0:00:44.9]} 38. Qc2 {[%clk 0:00:05.8]}
38... Qa1 {[%clk 0:00:43.6]} 39. Kh2 {[%clk 0:00:02.7]} 39... Be5 {[%clk
0:00:42.1]} 40. Nf3 {[%clk 0:00:02.1]} 40... Bf6 {[%clk 0:00:42.4]} 41. Qf5
{[%clk 0:00:01.8]} 41... Qa2 {[%clk 0:00:25.8]} 42. Nxg5 {[%clk 0:00:01.7]}
42... Qxb3 {[%clk 0:00:25.5]} 43. Qh7+ {[%clk 0:00:01.3]} 43... Kf8 {[%clk
0:00:25.8]} 44. Qh6+ {[%clk 0:00:01.4]} 44... Ke7 {[%clk 0:00:24]} 45. Nf3
{[%clk 0:00:01.5]} 45... Qc4 {[%clk 0:00:21]} 46. Qh5 {[%clk 0:00:01.7]} 46...
Qe2 {[%clk 0:00:19.1]} 47. Qa5 {[%clk 0:00:01.5]} 47... Qxf2 {[%clk 0:00:19]}
48. Qb4+ {[%clk 0:00:01.5]} 48... Ke8 {[%clk 0:00:18.2]} 49. Qxf4 {[%clk
0:00:01.5]} 49... Be7 {[%clk 0:00:18.2]} 50. Qb8+ {[%clk 0:00:01.9]} 50... Bd8
{[%clk 0:00:17.8]} 51. Qxa7 {[%clk 0:00:02.4]} 51... Qxa7 {[%clk 0:00:16.2]} 0-1

[Event "*** Titled Tuesday Blitz"]
[Site "Chess.com"]
[Date "2021.02.02"]
[Round "9"]
[White "Michaelson_11"]
[Black "Kapitan_Bayan"]
[Result "0-1"]
[WhiteElo "2289"]
[BlackElo "2446"]
[TimeControl "180+1"]
[EndTime "11:46:58 PST"]
[Termination "Kapitan_Bayan won by checkmate"]

1. e4 {[%clk 0:03:00.9]} 1... Nc6 {[%clk 0:02:58]} 2. Nf3 {[%clk 0:02:59]} 2...
e5 {[%clk 0:02:55.9]} 3. Nc3 {[%clk 0:02:57.1]} 3... Nf6 {[%clk 0:02:55.5]} 4.
Be2 {[%clk 0:02:55.2]} 4... d5 {[%clk 0:02:48.1]} 5. exd5 {[%clk 0:02:48]} 5...
Nxd5 {[%clk 0:02:49]} 6. O-O {[%clk 0:02:48]} 6... Nxc3 {[%clk 0:02:42.8]} 7.
bxc3 {[%clk 0:02:45.9]} 7... Bd6 {[%clk 0:02:42.7]} 8. d4 {[%clk 0:02:43.4]}
8... exd4 {[%clk 0:02:42.7]} 9. Nxd4 {[%clk 0:02:43.1]} 9... Nxd4 {[%clk
0:02:33.2]} 10. cxd4 {[%clk 0:02:44]} 10... O-O {[%clk 0:02:33]} 11. Qd3 {[%clk
0:02:31.4]} 11... Qh4 {[%clk 0:02:23.5]} 12. g3 {[%clk 0:02:29]} 12... Qh3
{[%clk 0:02:23]} 13. Bb2 {[%clk 0:02:23.5]} 13... Bf5 {[%clk 0:02:21.9]} 14. Qc3
{[%clk 0:02:19.7]} 14... Be4 {[%clk 0:01:58.5]} 15. Bf3 {[%clk 0:02:12.9]} 15...
Rae8 {[%clk 0:01:45.5]} 16. Rfe1 {[%clk 0:02:02]} 16... Bb4 {[%clk 0:01:39.4]}
17. Bxe4 {[%clk 0:01:19.5]} 17... Bxc3 {[%clk 0:01:37.4]} 18. Bxc3 {[%clk
0:01:20.4]} 18... c6 {[%clk 0:01:35.3]} 19. Bb4 {[%clk 0:01:14.4]} 19... f5
{[%clk 0:00:58.3]} 20. Bg2 {[%clk 0:01:02.5]} 20... Qg4 {[%clk 0:00:52.5]} 21.
Bxf8 {[%clk 0:00:59.8]} 21... Rxe1+ {[%clk 0:00:51.1]} 22. Rxe1 {[%clk
0:01:00.7]} 22... Kxf8 {[%clk 0:00:51.6]} 23. d5 {[%clk 0:00:52.9]} 23... cxd5
{[%clk 0:00:35.6]} 24. Bxd5 {[%clk 0:00:53.8]} 24... f4 {[%clk 0:00:31.5]} 25.
Bxb7 {[%clk 0:00:34]} 25... fxg3 {[%clk 0:00:30.8]} 26. hxg3 {[%clk 0:00:32.9]}
26... Qb4 {[%clk 0:00:29.9]} 27. Re3 {[%clk 0:00:22.8]} 27... Qxb7 {[%clk
0:00:29.5]} 28. a3 {[%clk 0:00:19.8]} 28... Qb1+ {[%clk 0:00:28.9]} 29. Kh2
{[%clk 0:00:18.9]} 29... Qxc2 {[%clk 0:00:28.9]} 30. Kg2 {[%clk 0:00:19.4]}
30... g6 {[%clk 0:00:25.7]} 31. Rf3+ {[%clk 0:00:17]} 31... Kg7 {[%clk
0:00:25.3]} 32. Re3 {[%clk 0:00:17]} 32... h5 {[%clk 0:00:24.9]} 33. Kg1 {[%clk
0:00:13.8]} 33... Qc1+ {[%clk 0:00:23.6]} 34. Kg2 {[%clk 0:00:13.9]} 34... a5
{[%clk 0:00:23.3]} 35. Kh2 {[%clk 0:00:11.6]} 35... Qb2 {[%clk 0:00:21.8]} 36.
Kg2 {[%clk 0:00:11.4]} 36... a4 {[%clk 0:00:22.4]} 37. Kg1 {[%clk 0:00:09.9]}
37... Qc1+ {[%clk 0:00:21.1]} 38. Kg2 {[%clk 0:00:10]} 38... Kh6 {[%clk
0:00:21.1]} 39. Kh2 {[%clk 0:00:07.9]} 39... Qf1 {[%clk 0:00:21.5]} 40. Rf3
{[%clk 0:00:04.6]} 40... g5 {[%clk 0:00:21.8]} 41. Rf6+ {[%clk 0:00:04.1]} 41...
Kg7 {[%clk 0:00:21.9]} 42. f4 {[%clk 0:00:03.9]} 42... Qf2+ {[%clk 0:00:16.9]}
43. Kh3 {[%clk 0:00:04]} 43... g4+ {[%clk 0:00:14.5]} 44. Kh4 {[%clk 0:00:04.1]}
44... Qh2+ {[%clk 0:00:15]} 45. Kg5 {[%clk 0:00:04.1]} 45... Qxg3 {[%clk
0:00:15.6]} 46. Rb6 {[%clk 0:00:02.9]} 46... Qf3 {[%clk 0:00:14.5]} 47. Ra6
{[%clk 0:00:03]} 47... Qd5+ {[%clk 0:00:13.8]} 48. f5 {[%clk 0:00:03.5]} 48...
g3 {[%clk 0:00:13.3]} 49. Ra7+ {[%clk 0:00:03.3]} 49... Kf8 {[%clk 0:00:13.9]}
50. Kf6 {[%clk 0:00:03.4]} 50... Qd4+ {[%clk 0:00:14.2]} 51. Kg6 {[%clk
0:00:03.7]} 51... Qxa7 {[%clk 0:00:15.1]} 52. f6 {[%clk 0:00:03.8]} 52... Qf7+
{[%clk 0:00:15.6]} 53. Kh6 {[%clk 0:00:03.2]} 53... g2 {[%clk 0:00:16.5]} 54.
Kg5 {[%clk 0:00:02.9]} 54... g1=Q+ {[%clk 0:00:16.9]} 55. Kh6 {[%clk 0:00:03.8]}
55... Qgg6# {[%clk 0:00:17.1]} 0-1

[Event "*** Titled Tuesday Blitz"]
[Site "Chess.com"]
[Date "2021.02.02"]
[Round "9"]
[White "FMalexhdez"]
[Black "Eternauta2400"]
[Result "1-0"]
[WhiteElo "2209"]
[BlackElo "2404"]
[TimeControl "180+1"]
[EndTime "11:46:59 PST"]
[Termination "FMalexhdez won by checkmate"]

1. e4 {[%clk 0:02:57]} 1... e5 {[%clk 0:02:59.8]} 2. Nf3 {[%clk 0:02:57]} 2...
Nc6 {[%clk 0:03:00.1]} 3. Bc4 {[%clk 0:02:57.4]} 3... Nf6 {[%clk 0:02:59.8]} 4.
d3 {[%clk 0:02:56.5]} 4... Bc5 {[%clk 0:02:59.2]} 5. c3 {[%clk 0:02:54.6]} 5...
d6 {[%clk 0:02:58.4]} 6. Nbd2 {[%clk 0:02:52.1]} 6... O-O {[%clk 0:02:55.7]} 7.
Qe2 {[%clk 0:02:47.7]} 7... a5 {[%clk 0:02:55.3]} 8. a4 {[%clk 0:02:35.1]} 8...
Be6 {[%clk 0:02:54.5]} 9. O-O {[%clk 0:02:15.3]} 9... Bb6 {[%clk 0:02:37.9]} 10.
Bxe6 {[%clk 0:02:10]} 10... fxe6 {[%clk 0:02:37.3]} 11. Nc4 {[%clk 0:02:10.6]}
11... Bc5 {[%clk 0:02:30.6]} 12. Be3 {[%clk 0:02:06.3]} 12... Bxe3 {[%clk
0:02:28.3]} 13. fxe3 {[%clk 0:02:01.5]} 13... Qe8 {[%clk 0:02:28.2]} 14. Nh4
{[%clk 0:01:34.8]} 14... Qh5 {[%clk 0:02:21.3]} 15. Qxh5 {[%clk 0:01:31.6]}
15... Nxh5 {[%clk 0:02:22.2]} 16. d4 {[%clk 0:01:24.2]} 16... exd4 {[%clk
0:02:14.3]} 17. exd4 {[%clk 0:01:23.4]} 17... d5 {[%clk 0:02:13.6]} 18. exd5
{[%clk 0:01:21.7]} 18... exd5 {[%clk 0:02:14.5]} 19. Ne3 {[%clk 0:01:20.4]}
19... Nf4 {[%clk 0:02:14]} 20. Nhf5 {[%clk 0:01:15.7]} 20... g5 {[%clk
0:02:00.1]} 21. g3 {[%clk 0:01:11.8]} 21... Nd3 {[%clk 0:01:59.8]} 22. Nxd5
{[%clk 0:01:06.7]} 22... Nxb2 {[%clk 0:01:59.6]} 23. Rab1 {[%clk 0:01:04.2]}
23... Nxa4 {[%clk 0:01:55.3]} 24. Rxb7 {[%clk 0:01:03.6]} 24... Rad8 {[%clk
0:01:45]} 25. Nfe7+ {[%clk 0:00:57.9]} 25... Nxe7 {[%clk 0:01:38.6]} 26. Nxe7+
{[%clk 0:00:57.6]} 26... Kh8 {[%clk 0:01:38.7]} 27. Rxf8+ {[%clk 0:00:53.7]}
27... Rxf8 {[%clk 0:01:37]} 28. Rxc7 {[%clk 0:00:54.3]} 28... Re8 {[%clk
0:01:34]} 29. d5 {[%clk 0:00:52.8]} 29... Nxc3 {[%clk 0:01:33.3]} 30. d6 {[%clk
0:00:52.2]} 30... Nb5 {[%clk 0:01:29.6]} 31. Rc8 {[%clk 0:00:46.5]} 31... Nxd6
{[%clk 0:01:28.4]} 32. Rc7 {[%clk 0:00:35.9]} 32... Rc8 {[%clk 0:01:16.7]} 33.
Ra7 {[%clk 0:00:34.6]} 33... Rc1+ {[%clk 0:01:13]} 34. Kg2 {[%clk 0:00:34]}
34... Nc4 {[%clk 0:01:08.5]} 35. Nf5 {[%clk 0:00:28.5]} 35... h5 {[%clk
0:01:04.3]} 36. Kf3 {[%clk 0:00:23.8]} 36... Rf1+ {[%clk 0:00:52.1]} 37. Ke4
{[%clk 0:00:22.7]} 37... Nd2+ {[%clk 0:00:44.2]} 38. Ke5 {[%clk 0:00:21.1]}
38... Nc4+ {[%clk 0:00:44.2]} 39. Kf6 {[%clk 0:00:19.7]} 39... Nd6 {[%clk
0:00:26]} 40. Kg6 {[%clk 0:00:13.2]} 40... Re1 {[%clk 0:00:15]} 41. Nxd6 {[%clk
0:00:11.9]} 41... Re6+ {[%clk 0:00:14.7]} 42. Kxg5 {[%clk 0:00:11.5]} 42... Rxd6
{[%clk 0:00:15.1]} 43. Rxa5 {[%clk 0:00:11]} 43... Kg7 {[%clk 0:00:14]} 44. Kxh5
{[%clk 0:00:10.6]} 44... Rh6+ {[%clk 0:00:13.5]} 45. Kg5 {[%clk 0:00:10.1]}
45... Rxh2 {[%clk 0:00:14.3]} 46. g4 {[%clk 0:00:10.4]} 46... Re2 {[%clk
0:00:13.3]} 47. Ra7+ {[%clk 0:00:10.7]} 47... Kg8 {[%clk 0:00:13]} 48. Kf6
{[%clk 0:00:10.1]} 48... Rb2 {[%clk 0:00:13]} 49. Ra8+ {[%clk 0:00:09]} 49...
Kh7 {[%clk 0:00:12.6]} 50. Ra7+ {[%clk 0:00:08.5]} 50... Kg8 {[%clk 0:00:12.4]}
51. Ra6 {[%clk 0:00:07.5]} 51... Rf2+ {[%clk 0:00:11.2]} 52. Kg6 {[%clk
0:00:07.1]} 52... Rg2 {[%clk 0:00:10.6]} 53. Ra8# {[%clk 0:00:06.1]} 1-0

[Event "*** Titled Tuesday Blitz"]
[Site "Chess.com"]
[Date "2021.02.02"]
[Round "9"]
[White "LucaBrasi1968"]
[Black "NaciSAN"]
[Result "1-0"]
[WhiteElo "2521"]
[BlackElo "2320"]
[TimeControl "180+1"]
[EndTime "11:47:00 PST"]
[Termination "LucaBrasi1968 won on time"]

1. d4 {[%clk 0:03:00.9]} 1... Nf6 {[%clk 0:02:53.5]} 2. Nf3 {[%clk 0:03:00.2]}
2... g6 {[%clk 0:02:53.2]} 3. Bg5 {[%clk 0:02:59.1]} 3... Bg7 {[%clk 0:02:53.3]}
4. e3 {[%clk 0:02:59.3]} 4... O-O {[%clk 0:02:52.8]} 5. Bd3 {[%clk 0:02:59.3]}
5... d5 {[%clk 0:02:52.3]} 6. Nbd2 {[%clk 0:02:57.7]} 6... Nbd7 {[%clk
0:02:51.2]} 7. O-O {[%clk 0:02:56.6]} 7... c5 {[%clk 0:02:51.1]} 8. c3 {[%clk
0:02:56.5]} 8... b6 {[%clk 0:02:51.3]} 9. Qe2 {[%clk 0:02:48.1]} 9... Bb7 {[%clk
0:02:50.7]} 10. a4 {[%clk 0:02:47.2]} 10... a6 {[%clk 0:02:49.4]} 11. h3 {[%clk
0:02:46.5]} 11... h6 {[%clk 0:02:48.7]} 12. Bf4 {[%clk 0:02:46.7]} 12... Re8
{[%clk 0:02:46.5]} 13. Ne5 {[%clk 0:02:45.2]} 13... Nxe5 {[%clk 0:02:43.7]} 14.
Bxe5 {[%clk 0:02:45.2]} 14... Ne4 {[%clk 0:02:39.6]} 15. Bxg7 {[%clk 0:02:38.1]}
15... Kxg7 {[%clk 0:02:38.5]} 16. Nxe4 {[%clk 0:02:36.1]} 16... dxe4 {[%clk
0:02:39.4]} 17. Bc4 {[%clk 0:02:36]} 17... cxd4 {[%clk 0:02:33.3]} 18. exd4
{[%clk 0:02:28.4]} 18... e6 {[%clk 0:02:31.9]} 19. Rfd1 {[%clk 0:02:22.6]} 19...
Qg5 {[%clk 0:02:16.1]} 20. Qe3 {[%clk 0:02:18.7]} 20... b5 {[%clk 0:02:13.6]}
21. Qxg5 {[%clk 0:02:16.2]} 21... hxg5 {[%clk 0:02:11.3]} 22. axb5 {[%clk
0:02:14.7]} 22... axb5 {[%clk 0:02:11.3]} 23. Bxb5 {[%clk 0:02:15.1]} 23... Reb8
{[%clk 0:02:02.4]} 24. Be2 {[%clk 0:02:01.2]} 24... f5 {[%clk 0:01:57.1]} 25. b4
{[%clk 0:01:54.1]} 25... f4 {[%clk 0:01:52.1]} 26. b5 {[%clk 0:01:52.8]} 26...
Kf6 {[%clk 0:01:50.8]} 27. c4 {[%clk 0:01:52.7]} 27... Ke7 {[%clk 0:01:41.5]}
28. c5 {[%clk 0:01:50.5]} 28... Bd5 {[%clk 0:01:40.7]} 29. b6 {[%clk 0:01:50.4]}
29... Kd8 {[%clk 0:01:25.6]} 30. Bb5 {[%clk 0:01:45.6]} 30... Kc8 {[%clk
0:00:54.2]} 31. Rdb1 {[%clk 0:01:14.6]} 31... Kb7 {[%clk 0:00:51.9]} 32. Kf1
{[%clk 0:01:07]} 32... Bc6 {[%clk 0:00:33.5]} 33. Bc4 {[%clk 0:01:01.2]} 33...
Bd5 {[%clk 0:00:33.1]} 34. Bxd5+ {[%clk 0:00:58.4]} 34... exd5 {[%clk 0:00:34]}
35. Ke2 {[%clk 0:00:58.8]} 35... Kc6 {[%clk 0:00:16.1]} 36. Kd2 {[%clk
0:00:58.6]} 36... Kb7 {[%clk 0:00:14.6]} 37. Kc3 {[%clk 0:00:58.4]} 37... Kc6
{[%clk 0:00:13.6]} 38. Re1 {[%clk 0:00:57.7]} 38... Kb7 {[%clk 0:00:11.5]} 39.
Kb2 {[%clk 0:00:53.2]} 39... Kc6 {[%clk 0:00:10.9]} 40. Kc3 {[%clk 0:00:46.1]}
40... Kb7 {[%clk 0:00:10.7]} 41. Kb4 {[%clk 0:00:44.6]} 41... Kc6 {[%clk
0:00:11]} 42. Rh1 {[%clk 0:00:44.1]} 42... Rh8 {[%clk 0:00:10.3]} 43. Rhe1
{[%clk 0:00:37]} 43... Rhb8 {[%clk 0:00:09.2]} 44. Rec1 {[%clk 0:00:25.8]} 44...
Rh8 {[%clk 0:00:08.4]} 45. Kc3 {[%clk 0:00:20.6]} 45... Rhb8 {[%clk 0:00:07.8]}
46. Rcb1 {[%clk 0:00:20.9]} 46... Rh8 {[%clk 0:00:07]} 47. Kb2 {[%clk
0:00:14.7]} 47... Rhb8 {[%clk 0:00:06.2]} 48. Kc2 {[%clk 0:00:12.9]} 48... Rh8
{[%clk 0:00:06]} 49. Kd2 {[%clk 0:00:13.4]} 49... Rhb8 {[%clk 0:00:06]} 50. Ke2
{[%clk 0:00:13.9]} 50... Rh8 {[%clk 0:00:06.1]} 51. Kf1 {[%clk 0:00:14.2]} 51...
Rhb8 {[%clk 0:00:05.9]} 52. g3 {[%clk 0:00:14.1]} 52... Rh8 {[%clk 0:00:04.4]}
53. Kg2 {[%clk 0:00:13.3]} 53... Rhb8 {[%clk 0:00:03.3]} 54. h4 {[%clk 0:00:13]}
54... gxh4 {[%clk 0:00:01.8]} 55. gxh4 {[%clk 0:00:13.4]} 1-0

[Event "*** Titled Tuesday Blitz"]
[Site "Chess.com"]
[Date "2021.02.02"]
[Round "9"]
[White "GM_LOADING"]
[Black "Julianos82"]
[Result "1-0"]
[WhiteElo "2468"]
[BlackElo "2316"]
[TimeControl "180+1"]
[EndTime "11:47:01 PST"]
[Termination "GM_LOADING won by resignation"]

1. d4 {[%clk 0:03:00.9]} 1... d5 {[%clk 0:02:59.8]} 2. Nf3 {[%clk 0:02:55.4]}
2... c6 {[%clk 0:02:59.1]} 3. c3 {[%clk 0:02:49.9]} 3... Bg4 {[%clk 0:02:57.7]}
4. Bf4 {[%clk 0:02:49.2]} 4... Nd7 {[%clk 0:02:51.9]} 5. e3 {[%clk 0:02:47.8]}
5... e6 {[%clk 0:02:49.9]} 6. Be2 {[%clk 0:02:46.5]} 6... f5 {[%clk 0:02:44.8]}
7. h3 {[%clk 0:02:44.6]} 7... Bxf3 {[%clk 0:02:44]} 8. Bxf3 {[%clk 0:02:45.5]}
8... Ngf6 {[%clk 0:02:39.3]} 9. g4 {[%clk 0:02:44.6]} 9... Ne4 {[%clk
0:02:32.7]} 10. Nd2 {[%clk 0:02:31.4]} 10... Bd6 {[%clk 0:02:19.5]} 11. Bxe4
{[%clk 0:02:00.2]} 11... Bxf4 {[%clk 0:02:16.6]} 12. Bxf5 {[%clk 0:01:59.5]}
12... Bxe3 {[%clk 0:01:46.3]} 13. Bxe6 {[%clk 0:01:58.3]} 13... Qh4 {[%clk
0:01:02.1]} 14. Qe2 {[%clk 0:01:30.8]} 14... Bxd2+ {[%clk 0:00:57.3]} 15. Kxd2
{[%clk 0:01:31.7]} 15... O-O-O {[%clk 0:00:56.9]} 16. f4 {[%clk 0:01:26.8]}
16... Kb8 {[%clk 0:00:53.3]} 17. Bxd7 {[%clk 0:01:24.4]} 17... Rxd7 {[%clk
0:00:54.2]} 18. Rae1 {[%clk 0:01:24]} 18... a6 {[%clk 0:00:52.6]} 19. Qf3 {[%clk
0:01:18.6]} 19... Rc8 {[%clk 0:00:50]} 20. Kc2 {[%clk 0:01:02.9]} 20... c5
{[%clk 0:00:50]} 21. dxc5 {[%clk 0:01:03]} 21... d4 {[%clk 0:00:48.1]} 22. cxd4
{[%clk 0:00:59.6]} 22... Rxd4 {[%clk 0:00:49]} 23. Re5 {[%clk 0:00:54.4]} 23...
Qf6 {[%clk 0:00:33.6]} 24. Rhe1 {[%clk 0:00:48.4]} 24... Rxf4 {[%clk 0:00:31.2]}
25. Qd5 {[%clk 0:00:48.2]} 25... Rf2+ {[%clk 0:00:28.2]} 26. Kb1 {[%clk
0:00:46.8]} 26... Qg6+ {[%clk 0:00:23.1]} 27. Ka1 {[%clk 0:00:43.2]} 27... Qc2
{[%clk 0:00:22.1]} 28. Qd6+ {[%clk 0:00:17.1]} 28... Ka8 {[%clk 0:00:20.3]} 29.
Qb6 {[%clk 0:00:18]} 29... Rff8 {[%clk 0:00:13.9]} 30. Re7 {[%clk 0:00:15.7]}
30... Qg2 {[%clk 0:00:14.4]} 31. a3 {[%clk 0:00:12.9]} 31... Rf1 {[%clk
0:00:13.1]} 32. Rxf1 {[%clk 0:00:09.3]} 32... Qxf1+ {[%clk 0:00:14]} 33. Ka2
{[%clk 0:00:09.4]} 33... Qc4+ {[%clk 0:00:14.3]} 34. Qb3 {[%clk 0:00:09.2]}
34... Qxb3+ {[%clk 0:00:14.3]} 35. Kxb3 {[%clk 0:00:10.1]} 35... Rxc5 {[%clk
0:00:14.8]} 36. Rxg7 {[%clk 0:00:10.7]} 36... Rb5+ {[%clk 0:00:15.3]} 37. Ka2
{[%clk 0:00:10.3]} 37... h5 {[%clk 0:00:16.2]} 38. g5 {[%clk 0:00:10.6]} 38...
h4 {[%clk 0:00:16.3]} 39. g6 {[%clk 0:00:09.2]} 39... Ka7 {[%clk 0:00:16.6]} 40.
Rg8 {[%clk 0:00:09.2]} 40... Rg5 {[%clk 0:00:17.2]} 41. g7 {[%clk 0:00:09.6]}
41... a5 {[%clk 0:00:17.7]} 42. Kb3 {[%clk 0:00:09.7]} 42... Kb6 {[%clk
0:00:17.5]} 43. Kc4 {[%clk 0:00:10]} 43... Rg3 {[%clk 0:00:17.7]} 44. Kd4 {[%clk
0:00:10.1]} 44... Kb5 {[%clk 0:00:17.8]} 45. b3 {[%clk 0:00:08.6]} 45... a4
{[%clk 0:00:17.8]} 46. bxa4+ {[%clk 0:00:08.5]} 46... Kb6 {[%clk 0:00:18.5]} 47.
a5+ {[%clk 0:00:08.3]} 47... Kb5 {[%clk 0:00:17.6]} 48. Kd5 {[%clk 0:00:08.6]}
48... Rg6 {[%clk 0:00:17.2]} 49. Ke5 {[%clk 0:00:08.2]} 49... Rg3 {[%clk
0:00:16]} 50. Kd6 {[%clk 0:00:08.4]} 50... Ka4 {[%clk 0:00:16.2]} 51. Kc7 {[%clk
0:00:08.2]} 51... Kxa3 {[%clk 0:00:16.5]} 52. Kxb7 {[%clk 0:00:08.5]} 52... Kb4
{[%clk 0:00:16.9]} 53. a6 {[%clk 0:00:07.9]} 53... Rxh3 {[%clk 0:00:16.1]} 54.
Rc8 {[%clk 0:00:06.9]} 1-0

[Event "*** Titled Tuesday Blitz"]
[Site "Chess.com"]
[Date "2021.02.02"]
[Round "9"]
[White "JTCoach"]
[Black "kirillshevchenko"]
[Result "1/2-1/2"]
[WhiteElo "2710"]
[BlackElo "2831"]
[TimeControl "180+1"]
[EndTime "11:47:05 PST"]
[Termination "Game drawn by repetition"]

1. d4 {[%clk 0:03:00.9]} 1... Nf6 {[%clk 0:02:59.8]} 2. Bg5 {[%clk 0:03:00.8]}
2... g6 {[%clk 0:02:53.9]} 3. Bxf6 {[%clk 0:02:58.3]} 3... exf6 {[%clk
0:02:54.8]} 4. e3 {[%clk 0:02:58.4]} 4... f5 {[%clk 0:02:54]} 5. Nd2 {[%clk
0:02:56.3]} 5... Bg7 {[%clk 0:02:53.7]} 6. g3 {[%clk 0:02:56.3]} 6... h5 {[%clk
0:02:53.2]} 7. h4 {[%clk 0:02:56]} 7... d5 {[%clk 0:02:53.1]} 8. Bg2 {[%clk
0:02:55.2]} 8... c6 {[%clk 0:02:53.1]} 9. Ne2 {[%clk 0:02:53.1]} 9... Nd7 {[%clk
0:02:53]} 10. c4 {[%clk 0:02:47.1]} 10... dxc4 {[%clk 0:02:52.5]} 11. Nxc4
{[%clk 0:02:48]} 11... Nb6 {[%clk 0:02:53.2]} 12. Nd2 {[%clk 0:02:38.7]} 12...
O-O {[%clk 0:02:43.1]} 13. O-O {[%clk 0:02:38]} 13... Qe7 {[%clk 0:02:39.4]} 14.
Nb3 {[%clk 0:02:32.7]} 14... Be6 {[%clk 0:02:33.5]} 15. Nf4 {[%clk 0:02:31.2]}
15... Bc4 {[%clk 0:02:30.1]} 16. Re1 {[%clk 0:02:27.6]} 16... Bh6 {[%clk
0:02:29.1]} 17. Nd3 {[%clk 0:02:24.9]} 17... Bd5 {[%clk 0:02:12.1]} 18. Nbc5
{[%clk 0:02:11.7]} 18... Rfd8 {[%clk 0:02:05.1]} 19. b4 {[%clk 0:02:06.7]} 19...
Bxg2 {[%clk 0:02:00.1]} 20. Kxg2 {[%clk 0:02:06.3]} 20... Nd5 {[%clk 0:02:01]}
21. Qf3 {[%clk 0:02:01.4]} 21... a5 {[%clk 0:01:55]} 22. a3 {[%clk 0:01:53.2]}
22... b6 {[%clk 0:01:27.4]} 23. Ne5 {[%clk 0:01:32.3]} 23... Rac8 {[%clk
0:00:45]} 24. Ncd3 {[%clk 0:01:27.4]} 24... axb4 {[%clk 0:00:34.3]} 25. axb4
{[%clk 0:01:27.1]} 25... c5 {[%clk 0:00:34.6]} 26. bxc5 {[%clk 0:00:37.8]} 26...
bxc5 {[%clk 0:00:34.6]} 27. Rec1 {[%clk 0:00:37.7]} 27... Bg7 {[%clk 0:00:23.2]}
28. Ra6 {[%clk 0:00:28.4]} 28... Bxe5 {[%clk 0:00:12.7]} 29. Nxe5 {[%clk
0:00:26.7]} 29... Nb4 {[%clk 0:00:13.3]} 30. Nxg6 {[%clk 0:00:07.8]} 30... Qe4
{[%clk 0:00:13.6]} 31. Qxe4 {[%clk 0:00:05.8]} 31... fxe4 {[%clk 0:00:14.5]} 32.
Ne7+ {[%clk 0:00:06.5]} 32... Kf8 {[%clk 0:00:15]} 33. Nxc8 {[%clk 0:00:07]}
33... Nxa6 {[%clk 0:00:15.7]} 34. Na7 {[%clk 0:00:06.4]} 34... cxd4 {[%clk
0:00:14.8]} 35. Nc6 {[%clk 0:00:07]} 35... Rc8 {[%clk 0:00:15.3]} 36. exd4
{[%clk 0:00:07.2]} 36... Nb4 {[%clk 0:00:12.9]} 37. d5 {[%clk 0:00:04.1]} 37...
Nxd5 {[%clk 0:00:13.3]} 38. Rc2 {[%clk 0:00:02.5]} 38... e3 {[%clk 0:00:11.9]}
39. Kf3 {[%clk 0:00:03]} 39... exf2 {[%clk 0:00:04.6]} 40. Kxf2 {[%clk
0:00:03.9]} 40... Nf6 {[%clk 0:00:03.5]} 41. Nd4 {[%clk 0:00:04.5]} 41... Ng4+
{[%clk 0:00:03.4]} 42. Kf3 {[%clk 0:00:04.8]} 42... Re8 {[%clk 0:00:02]} 43. Nf5
{[%clk 0:00:05.2]} 43... f6 {[%clk 0:00:02.5]} 44. Kf4 {[%clk 0:00:05.3]} 44...
Re1 {[%clk 0:00:01.9]} 45. Rc8+ {[%clk 0:00:05.4]} 45... Kf7 {[%clk 0:00:02.4]}
46. Rc7+ {[%clk 0:00:06]} 46... Kf8 {[%clk 0:00:02.9]} 47. Rc8+ {[%clk
0:00:06.6]} 47... Kf7 {[%clk 0:00:03.4]} 48. Rc7+ {[%clk 0:00:06.3]} 48... Kg8
{[%clk 0:00:03.8]} 49. Rc8+ {[%clk 0:00:06.1]} 49... Kh7 {[%clk 0:00:04.1]} 50.
Rc7+ {[%clk 0:00:06.6]} 50... Kh8 {[%clk 0:00:04.6]} 51. Rc8+ {[%clk 0:00:07]}
51... Kh7 {[%clk 0:00:05.2]} 52. Rc7+ {[%clk 0:00:07.6]} 52... Kg8 {[%clk
0:00:05.6]} 53. Rc8+ {[%clk 0:00:07.8]} 53... Kf7 {[%clk 0:00:06.1]} 1/2-1/2